Cogmind - Beta 16 @@@ ROGUE MODE // 2025.10.30 @ 19:15:41 Player: 0631 Result: Destroyed by S-10 Pest with Light Assault Rifle Performance ------------- Evolutions (0) 0 Regions Visited (1) 200 Robots Destroyed (4) 20 Value Destroyed (112) 112 Prototype IDs (0) 0 Alien Tech Used (0) 0 Bonus (0) 0 TOTAL SCORE: 332 Bonus ------- None Cogmind --------- Core Integrity 0/250 Matter 300/300 Energy 100/100 System Corruption 14% Temperature Cool (0) Movement Core (100) Ox1 Location -10/Materials Parts ------- > --- POWER (1) -------- (None) > --- PROPULSION (2) --- (None) > --- UTILITY (2) ------ Small Storage Unit > --- WEAPON (2) ------- (None) > --- INVENTORY (8) ---- Ion Engine Aluminum Leg Aluminum Leg Heat Sink Medium Laser Grenade Launcher Peak State ------------ > --- POWER ------------ Ion Engine > --- PROPULSION ------- Compact Wheel Compact Wheel > --- UTILITY ---------- Small Storage Unit > --- WEAPON ----------- Medium Laser Assault Rifle > --- INVENTORY -------- Light Ion Engine Aluminum Leg [Rating: 6] Favorites ----------- Power Ion Engine Engine Ion Engine Propulsion Compact Wheel Wheel Compact Wheel Utility Small Storage Unit Storage Small Storage Unit Weapon Assault Rifle Energy Gun Medium Laser Ballistic Gun Assault Rifle Special Weapon Mining Laser Build | -11 -10 ------- Run | Yrd Mat Slots Evolved . | . . Power . | . . Propulsion . | . . Utility . | . . Weapon . | . . Parts Attached 9 | 6 3 Power 2 | 1 1 Engine 2 | 1 1 Core . | . . Reactor . | . . Propulsion 2 | 2 . Treads . | . . Leg . | . . Wheel 2 | 2 . Hover . | . . Flight . | . . Utility 1 | 1 . Device . | . . Storage 1 | 1 . Processor . | . . Hackware . | . . Protection . | . . Artifact . | . . Weapon 4 | 2 2 Energy Gun 2 | 1 1 Energy Cannon . | . . Ballistic Gun 1 | 1 . Ballistic Cannon . | . . Launcher . | . . Special Weapon 1 | . 1 Impact Weapon . | . . Slashing Weapon . | . . Piercing Weapon . | . . Special Melee Weapon . | . . Unidentified Prototypes . | . . Parts Lost 7 | . 7 Power 2 | . 2 Propulsion 2 | . 2 Utility . | . . Weapon 3 | . 3 Highest Loss Streak 4 | . 4 To Critical Strikes 1 | . 1 Average Backups 5 | 2 5 Power . | . . Propulsion 1 | . 2 Utility . | . . Weapon 2 | . 2 Tool/Special . | . . Unused Backups 5 | . 5 Power 1 | . 1 Propulsion 2 | . 2 Utility 1 | . 1 Weapon 1 | . 1 Tool/Special . | . . Average Slot Usage (%) 79 | . 79 Engine 13 | . 13 Wheel 23 | . 23 Storage 14 | . 14 Energy Gun 9 | . 9 Ballistic Gun 13 | . 13 Special Weapon 4 | . 4 Peak Build Rating 6 | 6 6 Average Rating 5 | 3 5 On Entrance 3 | . 6 Avg Prop Armor Cover (%) . | . . Naked Turns . | . . Heaviest Build 14 | 14 14 Greatest Support 32 | 32 32 Greatest Overweight (x) 2 | . 2 Average Overweight (x) . | . . Largest Inventory Capacity 8 | 8 8 Average Capacity 7 | 7 8 Most Carried 6 | 6 6 Average Carried 5 | 3 5 Final Capacity 8 | 8 8 Final Carried 6 | 4 6 Class Distribution -------------------- 100% | Mutant Dominant Class ---------------- Mutant | -10/Materials Resources | -11 -10 ----------- Run | Yrd Mat Matter Collected 285 | 227 58 Remotely . | . . Salvage Created 122 | . 122 Parts 4 | . 4 Haulers Intercepted . | . . Recyclers Shooed . | . . Parts Field Recycled . | . . Retrieved Matter . | . . Parts Self-Destructed . | . . Prevented . | . . Parts Restored . | . . Kills | -11 -10 ------- Run | Yrd Mat Combat Hostiles Destroyed 4 | . 4 Guns 3 | . 3 Classes Destroyed 2 | . 2 Swarmer 1 | . 1 Grunt 3 | . 3 Best Kill Streak 3 | . 3 Combat Bots Only 3 | . 3 Max Kills in Single Turn 1 | . 1 Gunslinging . | . . Exploded . | . . Melee . | . . Uniques/NPCs Destroyed . | . . Combat | -11 -10 -------- Run | Yrd Mat Hostile Shots Fired 56 | . 56 Missed 13 | . 13 Hits 43 | . 43 Projectile 43 | . 43 Critical Strikes 1 | . 1 Damage Taken 817 | . 817 Core 252 | . 252 Absorbed by Shields . | . . Core Remaining (%) 100 | 100 . Volleys Fired 37 | . 37 Largest 1 | . 1 Hottest 100 | . 100 Shots Fired 36 | . 36 Gun 24 | . 24 Cannon . | . . Launcher . | . . Special 12 | . 12 Kinetic . | . . Thermal 36 | . 36 Explosive . | . . Electromagnetic . | . . Robot Hit Streak 8 | . 8 Robot Miss Streak 2 | . 2 Penetration Max . | . . Secondary Targets . | . . Shots Hit Robots 17 | . 17 Core Hits 6 | . 6 Critical Kills . | . . Critical Parts Destroyed . | . . Critical Strikes 3 | . 3 Burn 3 | . 3 Melee Attacks . | . . Impact . | . . Slashing . | . . Piercing . | . . Sneak Attacks . | . . Combat Hostiles . | . . Follow-up Attacks . | . . Damage Inflicted 214 | . 214 Guns 214 | . 214 Cannons . | . . Explosions . | . . Melee . | . . Ramming . | . . Kinetic . | . . Thermal 214 | . 214 Explosive . | . . Electromagnetic . | . . Impact . | . . Slashing . | . . Piercing . | . . Highest Corruption 14 | . 14 Average Corruption 14 | . 14 Corruption Purged . | . . Corruption Blocked . | . . Effects 6 | . 6 Message Errors 2 | . 2 Matter Fused 2 | . 2 Heat Flow Errors 1 | . 1 Weapon Failures 1 | . 1 Overload Shots . | . . Overflow Damage . | . . Projectiles . | . . Explosions . | . . Melee . | . . Knockbacks . | . . Impact . | . . Kinetic . | . . Secondary . | . . Self-Inflicted Damage . | . . Shots . | . . Rammed . | . . Targets Rammed . | . . Kicked . | . . Crushed . | . . Highest Temperature 201 | . 201 Average Temperature 58 | . 58 Received Heat Transfer 114 | . 114 Siege Activations . | . . Martial Activations . | . . Shielding Activations . | . . Robots Disrupted . | . . Combat Hostiles . | . . Robots Corrupted . | . . Combat Hostiles . | . . Parts Fried . | . . Impact Corruptions . | . . Robots Melted 1 | . 1 Combat Hostiles 1 | . 1 Parts Melted 3 | . 3 Heat Transferred 851 | . 851 Parts Sabotaged . | . . Parts Stolen . | . . Parts Stripped . | . . Power Chain Reactions . | . . Alert | -11 -10 ------- Run | Yrd Mat Maximum Alert Level . | . . Low Security (%) 100 | 100 100 Level 1 . | . . Level 2 . | . . Level 3 . | . . Level 4 . | . . Level 5 . | . . High Security . | . . Max Security . | . . Peak Influence 60 | . 60 Initial . | . . Average 6 | . 7 Influence Increases 109 | . 109 Destroy 0b10 Robot/C 80 | . 80 Destroy Leader 10 | . 10 Successful Hack 10 | . 10 Destroy Structure 9 | . 9 Influence Decreases 89 | . 89 Time Decay 49 | . 49 Lost Part 40 | . 40 Squads Dispatched 3 | . 3 Investigation 2 | . 2 Extermination . | . . Reinforcement 1 | . 1 Assault . | . . Garrison . | . . Intercept . | . . Searches Triggered . | . . Construction Impeded . | . . Haulers Reinforced . | . . Active Scanning Responses . | . . Cargo Convoy Interrupts . | . . Stealth | -11 -10 --------- Run | Yrd Mat Distress Signals 2 | . 2 Communications Jammed . | . . Distress Signals . | . . Times Spotted 12 | . 12 Peak Tracking Total 8 | . 8 Tactical Retreats . | . . Traps | -11 -10 ------- Run | Yrd Mat Traps Triggered . | . . Indirectly . | . . Trap Hack Attempts . | . . Triggered . | . . Disarmed . | . . Reprogrammed . | . . Reused . | . . Traps Extracted . | . . Installed . | . . Triggered . | . . Machines | -11 -10 ---------- Run | Yrd Mat Machines Disabled . | . . Max in Single Turn . | . . Machines Repaired . | . . Machines Dismantled . | . . Machines Sabotaged . | . . Overloaded Fab Kills . | . . Hacking | -11 -10 --------- Run | Yrd Mat Machines Accessed 4 | . 4 Terminals 3 | . 3 Fabricators . | . . Repair Stations . | . . Recycling Units 1 | . 1 Scanalyzers . | . . Garrison Access . | . . Total Hacks 11 | . 11 Successful 4 | . 4 Failed 7 | . 7 Catastrophic 1 | . 1 Database Lockouts . | . . Manual . | . . Terminals 6 | . 6 Fabricators . | . . Repair Stations . | . . Recycling Units 5 | . 5 Scanalyzers . | . . Garrison Access . | . . Terminal Hacks 3 | . 3 Emergency Access Points 1 | . 1 Zone Layout 2 | . 2 Fabricator Hacks . | . . Repair Station Hacks . | . . Recycling Unit Hacks 1 | . 1 Report Inventory 1 | . 1 Scanalyzer . | . . Garrison Access Hacks . | . . Unauthorized Hacks . | . . Terminals . | . . Fabricators . | . . Repair Stations . | . . Recycling Units . | . . Scanalyzers . | . . Garrison Access . | . . Data Cores Recovered . | . . Used . | . . Hacking Detections 3 | . 3 Full Trace Events 2 | . 2 Feedback Events . | . . Feedback Blocked . | . . Robot Schematics Acquired . | . . Robots Built . | . . Authchips . | . . Time . | . . Total Robot Build Rating . | . . Part Schematics Acquired . | . . Parts Built . | . . Authchips . | . . Time . | . . Total Part Build Rating . | . . Part Studies Acquired . | . . Parts Repaired . | . . Time . | . . Parts Recycled . | . . Recycled Matter . | . . Retrieved Matter . | . . Retrieved Components . | . . Parts Scanalyzed . | . . Part Schematics Acquired . | . . Parts Damaged . | . . Bothacking | -11 -10 ------------ Run | Yrd Mat Used RIF Installer . | . . Robots Hacked . | . . Non-combat . | . . Combat . | . . Robot Hacks Applied . | . . Relay Couplers Released . | . . Fabnet Peak Effective % . | . . Robots Rewired . | . . Allies Hacked . | . . Hacks Repelled . | . . Allies | -11 -10 -------- Run | Yrd Mat Total Allies . | . . Largest Group . | . . Highest-Rated Group . | . . Highest-Rated Ally . | . . Total Orders . | . . Ally Attacks . | . . Total Damage . | . . Kills . | . . Allies Corrupted . | . . Allies Melted . | . . Intel | -11 -10 ------- Run | Yrd Mat Active Infowar (turns) . | . . Robot Analysis Total . | . . Derelict Logs Recovered . | . . Drone Launches . | . . Drone Recoveries . | . . Exploration | -11 -10 ------------- Run | Yrd Mat Turns Passed 428 | 49 379 Spaces Moved 249 | 38 211 Core 19 | 9 10 Treads . | . . Legs . | . . Wheels 230 | 29 201 Hover . | . . Flight . | . . Fastest Speed 50 | 50 100 Average Speed 98 | 88 100 Slowest Speed 150 | 100 150 Overloaded Moves . | . . Propulsion Burnouts . | . . Robots Hopped . | . . Potential Cave-ins 3 | . 3 Cave-ins Triggered 1 | . 1 Exploration Rate (%) 19 | 4 34 Regions Visited 1 Branch Regions . Pre-discovered Areas . | . . Known Exits Taken . | . . Unknown Exits Taken 1 | 1 . Scrap Searched . | . . Spaces Dug 12 | . 12 Terrain Destroyed 12 | . 12 Melee . | . . Projectile 12 | . 12 AOE . | . . Terrain Rammed . | . . Walls Destroyed . | . . Machines Disabled . | . . Actions | -11 -10 --------- Run | Yrd Mat Total 369 | 53 316 Wait 61 | . 61 Move 248 | 37 211 Hop . | . . Pick Up 14 | 10 4 Fast Attach . | . . Attach 8 | 6 2 Detach . | . . Swap 1 | . 1 Drop . | . . Fire 37 | . 37 Melee . | . . Ram . | . . Kick . | . . Crush . | . . Escape Stasis . | . . Rewire . | . . Trap . | . . Miscellaneous . | . . Route ------- -11/Scrapyard -10/Materials (discovered 1 exit: [*Min]) History --------- Turn | Location | Event 5 | -11/Scrapyard | Discovered new exit (range 15) 50 | -11/Scrapyard | Entered Materials 169 | -10/Materials | Discovered new exit (range 15) 307 | -10/Materials | Build established: Mutant 314 | -10/Materials | Crushed by falling debris 314 | -10/Materials | System corruption reached 10% 345 | -10/Materials | Lost 3 parts (1p1n1w) 408 | -10/Materials | Core integrity fell below 50% 426 | -10/Materials | Core integrity fell below 20% 429 | -10/Materials | Destroyed by S-10 Pest with Light Assault Rifle Last Messages --------------- G-34 Mercenary suffers critical hit (Burn). Ion Engine melted. G-34 Mercenary destroyed. Acquired 37 matter. Acquired Ion Engine. Acquired 21 matter. System corrupted: Heat flow error (+221). Acquired Heat Sink. Critical hit (Destroy). Lgt. Ion Engine destroyed. Assault Rifle destroyed. S-10 Pest suffers critical hit (Burn). System corrupted: Matter fused (-10). S-10 Pest critical meltdown. Lgt. Assault Rifle melted. Com. Wheel destroyed. Med. Laser destroyed. W-16 Scout sends out distress signal. ALERT: Hostiles spotted, dispatching reinforcements to Terminal M007. Map ----- +----------------------------------------------------+ | ?????????????????????????????????????????????????? | | ?????????????????????????????????????????????????? | | ?????????????????????????????????????????????????? | | ?????????????????????????????????????????????????? | | ?????????????????????????????????????????????????? | | ?????????????????????????????????????????????????? | | ?????????????????????????????????????????????????? | | ?????????????????????????????????????????????????? | | ?????????????????????????????????????????????????? | | ?????????????????????????????????????????????????? | | ???????????????????????? r ??????????????????????? | | ???????????????????????? ??????????????????????? | | ???????????????????????# ??????????????????????? | | ??????????????????????? #?????????????????????? | | ??????????????????????? w#?????????????????????? | | ??????????????????????? #?????????????????????? | | #????###### ##### #?????????????????????? | | #???????#####+####### ##????????????????????? | | ######### #""" #????????????????????? | | # ## #" g #????????????????????? | | # """ ## """ #"! #????????????????????? | | + "Y" ## """"" #"" < #????????????????????? | | # ## """"" #"| #????????????????????? | | # ## """"" #" g #????????????????????? | | # ## """ #""" #????????????????????? | | ######+## #### @ ###### #???????????? | | # #??# sss +???????????? | | ##########??# #######???????????????? | | #???????????# #?????????????????????? | | #?#####????##s ##????????????????????? | | #?#"""###### #????????????????????? | | ###"T"# s ###??????????????????? | | ^ T # ###????????????????? | | ##########???????????? | | ## #### #???????????? | | """ """ """ ########?## #???????????? | | """ """ """ %/ #### #???????????? | | """ """ """ # """=%+ #???????????? | | # "Y" [#### #???????????? | | [ [ # #??## ##???????????? | | # #???# #????????????? | | + #???# #????????????? | | ########???# #????????????? | | ####### ## #??????????# #????????????? | | ??????# ##+###+#####???????# #????????????? | | ??????#! !## #??????## ##???????????? | | ??????##!!!!### T #??????# ############# | | ???????######?# #??????# | | ??????????????# #??????# | | ??????????????# #?##???# | +----------------------------------------------------+ Best States ------------- Heat Dissipation 25 Energy Generation 10 Energy Capacity 250 Matter Stores 300 Matter Capacity 300 Sight Range 16 Terrain Scan Density 10 Evasion (%) 40 Item Schematics ----------------- None Robot Schematics ------------------ None Fabricated ------------ Nothing Repaired ---------- Nothing Studied --------- None Alien Tech Used ----------------- None Achievements -------------- None Challenges ------------ None Game ------ Seed ThunderSmartbombPower Manual? 0 Play Time 00:13:09 Cumulative 5.5 hours Start 2025.10.30 @ 19:05:06 End 2025.10.30 @ 19:15:41 Sessions 1 Manual Loads 0 Difficulty Rogue Special Mode None Game No. 7 Rogue 7 Adventurer 0 Explorer 0 Win Type - Total 0 Types 0/0/0/0/0/0/0/0/0/0 Lore% 6 Gallery% 5 Achievement% 7 Wizard Run 0 Options --------- Layout 1 ASCII 0 Keyboard 1 Movement Numpad Keybinds 0 Fullscreen 1 Font 24/Smallcaps Map View 50x40 Zoom Use 0% Tactical HUD 0 Map Filters NONE Filters NONE Steam 1 RUN: 84ef196c-2c4d-46bf-a6ab-d5a12a4dcef7